Workbook

Sheet 30 kmph
A1: Calcul du rayon minimal d'un arc de cercle
I3: i = dévers (%) | M3: Coefficient de frottement calculé:
I4: p = pente (%) | M4: Øc = 0,45 (1 - 0,05 √V) = | Q4: =0.45*(1-0.05*(E6)^0.5) -> 0.3267624246
A6: Vitesse de base: | E6: 30 | F6: km/h | G6: expérimental
A7: 1) calcul de R brut
A9: RAYON MINIMAL D'UN ARC DE CERCLE: WALLON (m)
C10: DÉVERS
C11: -0.025 | D11: -0.02 | E11: -0.015 | F11: -0.01 | G11: -0.005 | H11: 0 | I11: 0.005 | J11: 0.01 | K11: 0.015 | L11: 0.02 | M11: 0.025 | N11: 0.03 | O11: 0.035 | P11: 0.04 | Q11: 0.045 | R11: 0.05 | S11: 0.055 | T11: 0.06 | U11: 0.065 | V11: 0.07
A12: PENTE | B12: -0.08 | C12: =2* ($E$6)^2/(127*(C$11+((2/3)*((0.75*$Q$4^2)+($B12*$Q$4)-$B12^2)^(1/2)))) -> 117.7602171 | D12: =2* ($E$6)^2/(127*(D$11+((2/3)*((0.75*$Q$4^2)+($B12*$Q$4)-$B12^2)^(1/2)))) -> 113.0632109 | E12: 108.7265243 | F12: 104.7102272 | G12: 100.9800795 | H12: 97.50655212 | I12: 94.26404389 | J12: 91.23024946 | K12: 88.38564544 | L12: 85.71306978 | M12: 83.19737531 | N12: 80.82514242 | O12: 78.5844396 | P12: 76.4646228 | Q12: 74.45616625 | R12: 72.55051941 | S12: 70.7399853 | T12: 69.01761653 | U12: 67.37712625 | V12: 65.81281148
B13: -0.07 | C13: =2* ($E$6)^2/(127*(C$11+((2/3)*((0.75*$Q$4^2)+($B13*$Q$4)-$B13^2)^(1/2)))) -> 111.1875743 | D13: 106.9909088 | E13: 103.099519 | F13: 99.48126415 | G13: 96.10836238 | H13: 92.95667609 | I13: 90.00513328 | J13: 87.23525593 | K13: 84.6307727 | L13: 82.1772991 | M13: 79.86207169 | N13: 77.67372598 | O13: 75.6021099 | P13: 73.63812626 | Q13: 71.77359927 | R13: 70.00116072 | S13: 68.3141527 | T13: 66.706544 | U13: 65.17285809 | V13: 63.70811076
B14: -0.06 | C14: 105.7788937 | D14: 101.9736016 | E14: 98.43258575 | F14: 95.1292392 | G14: 92.04041073 | H14: 89.14586141 | I14: 86.42782063 | J14: 83.87062095 | K14: 81.46039591 | L14: 79.18482844 | M14: 77.03294038 | N14: 74.99491534 | O14: 73.061949 | P14: 71.22612192 | Q14: 69.48029113 | R14: 67.81799723 | S14: 66.23338454 | T14: 64.72113217 | U14: 63.27639433 | V14: 61.89474845
B15: -0.05 | C15: 101.2510894 | D15: 97.75921491 | E15: 94.50016151 | F15: 91.4513954 | G15: 88.59319982 | H15: 85.90824816 | I15: 83.38125249 | J15: 80.99867225 | K15: 78.74847156 | L15: 76.61991584 | M15: 74.60340057 | N15: 72.69030642 | O15: 70.87287607 | P15: 69.14410907 | Q15: 67.49767177 | R15: 65.92781971 | S15: 64.42933073 | T15: 62.99744689 | U15: 61.627824 | V15: 60.31648766
B16: -0.04 | C16: 97.40901891 | D16: 94.17288659 | E16: 91.14486269 | F16: 88.30549812 | G16: 85.63769405 | H16: 83.1263574 | I16: 80.75811505 | J16: 78.52107564 | K16: 76.40462991 | L16: 74.3992824 | M16: 72.49650905 | N16: 70.68863606 | O16: 68.96873647 | P16: 67.33054147 | Q16: 65.76836401 | R16: 64.27703289 | S16: 62.85183554 | T16: 61.48846828 | U16: 60.18299293 | V16: 58.9317988
B17: -0.03 | C17: 94.11345906 | D17: 91.08919425 | E17: 88.25324305 | F17: 85.58854778 | G17: 83.08005052 | H17: 80.71440843 | I17: 78.47975625 | J17: 76.36550738 | K17: 74.36218608 | L17: 72.4612855 | M17: 70.65514696 | N17: 68.93685681 | O17: 67.30015794 | P17: 65.73937372 | Q17: 64.24934216 | R17: 62.8253589 | S17: 61.4631276 | T17: 60.15871664 | U17: 58.90852122 | V17: 57.70923009
B18: -0.02 | C18: 91.26223238 | D18: 88.41566464 | E18: 85.74130072 | F18: 83.22397315 | G18: 80.85024486 | H18: 78.60816932 | I18: 76.48708937 | J18: 74.47746792 | K18: 72.5707445 | L18: 70.75921339 | M18: 69.03591957 | N18: 67.39456943 | O18: 65.82945399 | P18: 64.33538256 | Q18: 62.90762523 | R18: 61.54186284 | S18: 60.23414335 | T18: 58.98084364 | U18: 57.778636 | V18: 56.62445859
B19: -0.01 | C19: 88.77855857 | D19: 86.08253095 | E19: 83.54542321 | F19: 81.1535861 | G19: 78.89488996 | H19: 76.75851892 | I19: 74.73479777 | J19: 72.81504542 | K19: 70.99145042 | L19: 69.25696472 | M19: 67.60521265 | N19: 66.03041262 | O19: 64.52730946 | P19: 63.09111587 | Q19: 61.71746146 | R19: 60.40234838 | S19: 59.14211239 | T19: 57.93338884 | U19: 56.77308259 | V19: 55.65834163
B20: 0 | C20: 86.60358298 | D20: 84.03612641 | E20: 81.61651679 | F20: 79.33234089 | G20: 77.17253725 | H20: 75.12721708 | I20: 73.18751286 | J20: 71.34544982 | K20: 69.59383634 | L20: 67.92617014 | M20: 66.3365576 | N20: 64.81964418 | O20: 63.37055415 | P20: 61.98483826 | Q20: 60.65842809 | R20: 59.38759616 | S20: 58.16892095 | T20: 56.99925617 | U20: 55.87570356 | V20: 54.79558899
B21: 0.01 | C21: 84.69142477 | D21: 82.23448431 | E21: 79.91607901 | F21: 77.72481314 | G21: 75.65050748 | H21: 73.68404121 | I21: 71.81721782 | J21: 70.04265094 | K21: 68.35366664 | L21: 66.74421958 | M21: 65.20882068 | N21: 63.74247459 | O21: 62.3406254 | P21: 60.99910937 | Q21: 59.71411358 | R21: 58.4821398 | S21: 57.29997264 | T21: 56.16465156 | U21: 55.07344607 | V21: 54.02383386
B22: 0.02 | C22: 83.00580175 | D22: 80.64432602 | E22: 78.41349913 | F22: 76.30277069 | G22: 74.30269651 | H22: 72.40479733 | I22: 70.60143866 | J22: 68.8857281 | K22: 67.25142735 | L22: 65.6928764 | M22: 64.20492803 | N22: 62.78289104 | O22: 61.42248082 | P22: 60.11977628 | Q22: 58.87118202 | R22: 57.6733953 | S22: 56.52337676 | T22: 55.41832477 | U22: 54.35565255 | V22: 53.33296802
B23: 0.03 | C23: 81.51767307 | D23: 79.2389492 | E23: 77.08415864 | F23: 75.04345848 | G23: 73.10802126 | H23: 71.26990725 | I23: 69.52195569 | J23: 67.85769145 | K23: 66.27124495 | L23: 64.75728298 | M23: 63.31094876 | N23: 61.92780996 | O23: 60.60381329 | P23: 59.33524483 | Q23: 58.11869524 | R23: 56.95102919 | S23: 55.82935834 | T23: 54.75101751 | U23: 53.71354352 | V23: 52.71465642
B24: 0.04 | C24: 80.20355786 | D24: 77.9967162 | E24: 75.90806716 | F24: 73.92836323 | G24: 72.04929712 | H24: 70.26338519 | I24: 68.56386786 | J24: 66.94462408 | K24: 65.40009772 | L24: 63.92523383 | M24: 62.51542339 | N24: 61.1664552 | O24: 59.87447385 | P24: 58.63594296 | Q24: 57.4476128 | R24: 56.30649185 | S24: 55.20982167 | T24: 54.1550546 | U24: 53.13983403 | V24: 52.16197679
B25: 0.05 | C25: 79.04431342 | D25: 76.89995231 | E25: 74.86886524 | F25: 72.94230776 | G25: 71.11241292 | H25: 69.37208384 | I25: 67.71490182 | J25: 66.13504714 | K25: 64.62723084 | L25: =2* ($E$6)^2/(127*(L$11+((2/3)*((0.75*$Q$4^2)+($B25*$Q$4)-$B25^2)^(1/2)))) -> 63.18663552 | M25: 61.80886397 | N25: 60.4898943 | O25: 59.22604077 | P25: 58.01391934 | Q25: 56.85041747 | R25: 55.7326674 | S25: 54.65802254 | T25: 53.62403659 | U25: 52.6284449 | V25: 51.66914797
B26: 0.06 | C26: 78.02423315 | D26: 75.93412986 | E26: 73.95308399 | F26: 72.07277698 | G26: 70.28571529 | H26: 68.58513062 | I26: 66.96489425 | J26: 65.41944321 | K26: 63.9437165 | L26: 62.5330997 | M26: 61.18337679 | N26: 59.89068805 | O26: 58.65149321 | P26: 57.46253907 | Q26: 56.32083096 | R26: 55.22360759 | S26: 54.16831874 | T26: 53.15260545 | U26: 52.17428245 | V26: 51.23132245
B27: 0.07 | C27: 77.13037105 | D27: 75.08725577 | E27: 73.1495879 | F27: 71.30940944 | G27: 69.55954348 | H27: 67.89350071 | I27: 66.305399 | J27: 64.78989397 | K27: 63.34211895 | L27: 61.95763278 | M27: 60.63237424 | N27: 59.36262233 | O27: 58.14496137 | P27: 56.97625026 | Q27: 55.85359551 | R27: 54.77432724 | S27: 53.73597805 | T27: 52.73626413 | U27: 51.77306854 | V27: 50.84442621
B28: 0.08 | C28: 76.35203005 | D28: 74.34940652 | E28: 72.44915089 | F28: 70.6436097 | G28: 68.92587383 | H28: 67.28969025 | I28: 65.72938588 | J28: 64.23980192 | K28: 62.81623683 | L28: 61.4543968 | M28: 60.15035247 | N28: 58.90050105 | O28: 57.70153314 | P28: 56.55040338 | Q28: 55.44430471 | R28: 54.38064547 | S28: 53.35702911 | T28: 52.37123621 | U28: 51.42120839 | V28: 50.50503396
A30: 2) calcul de R corrigé
A31: RAYON MINIMAL D'UN ARC DE CERCLE Corrigé Wallon (m)
C32: DÉVERS
C33: -2.5 | D33: -2.5 | E33: -2 | F33: -1.5 | G33: -1 | H33: -0.5 | I33: 0 | J33: 0.5 | K33: 1 | L33: 1.5 | M33: 2 | N33: 2.5 | O33: 3 | P33: 3.5 | Q33: 4 | R33: 4.5 | S33: 5 | T33: 5.5 | U33: 6 | V33: 6.5 | W33: 7
B34: n | C34: 1 | D34: 1 | E34: 1 | F34: 1 | G34: 1 | H34: 1 | I34: 1 | J34: 1 | K34: 1 | L34: 1 | M34: 1 | N34: 1 | O34: =1+(1/9) -> 1.111111111 | P34: =1+(1/9)*2 -> 1.222222222 | Q34: =1+(1/9)*3 -> 1.333333333 | R34: =1+(1/9)*4 -> 1.444444444 | S34: =1+(1/9)*5 -> 1.555555556 | T34: =1+(1/9)*6 -> 1.666666667 | U34: =1+(1/9)*7 -> 1.777777778 | V34: =1+(1/9)*8 -> 1.888888889 | W34: =1+(1/9)*9 -> 2
A35: PENTE | B35: -8 | C35: 1000 | D35: 118 | E35: 113 | F35: 109 | G35: 105 | H35: 101 | I35: 98 | J35: 94 | K35: 91 | L35: 88 | M35: 86 | N35: 83 | O35: 73 | P35: 64 | Q35: 57 | R35: 52 | S35: 47 | T35: 42 | U35: 39 | V35: 36 | W35: 33
B36: -7 | C36: 1000 | D36: 111 | E36: 107 | F36: 103 | G36: 99 | H36: 96 | I36: 93 | J36: 90 | K36: 87 | L36: 85 | M36: 82 | N36: 80 | O36: 70 | P36: 62 | Q36: 55 | R36: 50 | S36: 45 | T36: 41 | U36: 38 | V36: 35 | W36: 32
B37: -6 | C37: 1000 | D37: 106 | E37: 102 | F37: 98 | G37: 95 | H37: 92 | I37: 89 | J37: 86 | K37: 84 | L37: 81 | M37: 79 | N37: 77 | O37: 67 | P37: 60 | Q37: 53 | R37: 48 | S37: 44 | T37: 40 | U37: 36 | V37: 33 | W37: 31
B38: -5 | C38: 1000 | D38: 101 | E38: 98 | F38: 95 | G38: 91 | H38: 89 | I38: 86 | J38: 83 | K38: 81 | L38: 79 | M38: 77 | N38: 75 | O38: 65 | P38: 58 | Q38: 52 | R38: 47 | S38: 42 | T38: 39 | U38: 35 | V38: 33 | W38: 30
B39: -4 | C39: 1000 | D39: 97 | E39: 94 | F39: 91 | G39: 88 | H39: 86 | I39: 83 | J39: 81 | K39: 79 | L39: 76 | M39: 74 | N39: 72 | O39: 64 | P39: 56 | Q39: 50 | R39: 46 | S39: 41 | T39: 38 | U39: 35 | V39: 32 | W39: 29
B40: -3 | C40: 1000 | D40: 94 | E40: 91 | F40: 88 | G40: 86 | H40: 83 | I40: 81 | J40: 78 | K40: 76 | L40: 74 | M40: 72 | N40: 71 | O40: 62 | P40: 55 | Q40: 49 | R40: 44 | S40: 40 | T40: 37 | U40: 34 | V40: 31 | W40: 29
B41: -2 | C41: 1000 | D41: 91 | E41: 88 | F41: 86 | G41: 83 | H41: 81 | I41: 79 | J41: 76 | K41: 74 | L41: 73 | M41: 71 | N41: 69 | O41: 61 | P41: 54 | Q41: 48 | R41: 44 | S41: 40 | T41: 36 | U41: 33 | V41: 31 | W41: 28
B42: -1 | C42: 1000 | D42: 89 | E42: 86 | F42: 84 | G42: 81 | H42: 79 | I42: 77 | J42: 75 | K42: 73 | L42: 71 | M42: 69 | N42: 68 | O42: 59 | P42: 53 | Q42: 47 | R42: 43 | S42: 39 | T42: 35 | U42: 33 | V42: 30 | W42: 28
B43: 0 | C43: 1000 | D43: 87 | E43: 84 | F43: 82 | G43: 79 | H43: 77 | I43: 75 | J43: 73 | K43: 71 | L43: 70 | M43: 68 | N43: 66 | O43: 58 | P43: 52 | Q43: 46 | R43: 42 | S43: 38 | T43: 35 | U43: 32 | V43: 30 | W43: 27
B44: 1 | C44: 1000 | D44: 85 | E44: 82 | F44: 80 | G44: 78 | H44: 76 | I44: 74 | J44: 72 | K44: 70 | L44: 68 | M44: 67 | N44: 65 | O44: 57 | P44: 51 | Q44: 46 | R44: 41 | S44: 38 | T44: 34 | U44: 32 | V44: 29 | W44: 27
B45: 2 | C45: 1000 | D45: 83 | E45: 81 | F45: 78 | G45: 76 | H45: 74 | I45: 72 | J45: 71 | K45: 69 | L45: 67 | M45: 66 | N45: 64 | O45: 57 | P45: 50 | Q45: 45 | R45: 41 | S45: 37 | T45: 34 | U45: 31 | V45: 29 | W45: 27
B46: 3 | C46: 1000 | D46: 82 | E46: 79 | F46: 77 | G46: 75 | H46: 73 | I46: 71 | J46: 70 | K46: 68 | L46: 66 | M46: 65 | N46: 63 | O46: 56 | P46: 50 | Q46: 45 | R46: 40 | S46: 37 | T46: 33 | U46: 31 | V46: 28 | W46: 26
B47: 4 | C47: 1000 | D47: 80 | E47: 78 | F47: 76 | G47: 74 | H47: 72 | I47: 70 | J47: 69 | K47: 67 | L47: 65 | M47: 64 | N47: 63 | O47: 55 | P47: 49 | Q47: 44 | R47: 40 | S47: 36 | T47: 33 | U47: 30 | V47: 28 | W47: 26
B48: 5 | C48: 1000 | D48: 79 | E48: 77 | F48: 75 | G48: 73 | H48: 71 | I48: 69 | J48: 68 | K48: 66 | L48: 65 | M48: 63 | N48: 62 | O48: 54 | P48: 48 | Q48: 44 | R48: 39 | S48: 36 | T48: 33 | U48: 30 | V48: 28 | W48: 26
B49: 6 | C49: 1000 | D49: 78 | E49: 76 | F49: 74 | G49: 72 | H49: 70 | I49: 69 | J49: 67 | K49: 65 | L49: 64 | M49: 63 | N49: 61 | O49: 54 | P49: 48 | Q49: 43 | R49: 39 | S49: 36 | T49: 33 | U49: 30 | V49: 28 | W49: 26
B50: 7 | C50: 1000 | D50: 77 | E50: 75 | F50: 73 | G50: 71 | H50: 70 | I50: 68 | J50: 66 | K50: 65 | L50: 63 | M50: 62 | N50: 61 | O50: 53 | P50: 48 | Q50: 43 | R50: 39 | S50: 35 | T50: 32 | U50: 30 | V50: 27 | W50: 25
B51: 8 | C51: 1000 | D51: 76 | E51: 74 | F51: 72 | G51: 71 | H51: 69 | I51: 67 | J51: 66 | K51: 64 | L51: 63 | M51: 61 | N51: 60 | O51: 53 | P51: 47 | Q51: 42 | R51: 38 | S51: 35 | T51: 32 | U51: 29 | V51: 27 | W51: 25
C74: 118 | D74: 113 | E74: 109 | F74: 105 | G74: 101 | H74: 98 | I74: 94 | J74: 91 | K74: 88 | L74: 86 | M74: 83 | N74: 73 | O74: 64 | P74: 57
C75: 111 | D75: 107 | E75: 103 | F75: 99 | G75: 96 | H75: 93 | I75: 90 | J75: 87 | K75: 85 | L75: 82 | M75: 80 | N75: 70 | O75: 62 | P75: 55
C76: 106 | D76: 102 | E76: 98 | F76: 95 | G76: 92 | H76: 89 | I76: 86 | J76: 84 | K76: 81 | L76: 79 | M76: 77 | N76: 67 | O76: 60 | P76: 53
C77: 101 | D77: 98 | E77: 95 | F77: 91 | G77: 89 | H77: 86 | I77: 83 | J77: 81 | K77: 79 | L77: 77 | M77: 75 | N77: 65 | O77: 58 | P77: 52
C78: 97 | D78: 94 | E78: 91 | F78: 88 | G78: 86 | H78: 83 | I78: 81 | J78: 79 | K78: 76 | L78: 74 | M78: 72 | N78: 64 | O78: 56 | P78: 50
C79: 94 | D79: 91 | E79: 88 | F79: 86 | G79: 83 | H79: 81 | I79: 78 | J79: 76 | K79: 74 | L79: 72 | M79: 71 | N79: 62 | O79: 55 | P79: 49
C80: 91 | D80: 88 | E80: 86 | F80: 83 | G80: 81 | H80: 79 | I80: 76 | J80: 74 | K80: 73 | L80: 71 | M80: 69 | N80: 61 | O80: 54 | P80: 48
C81: 89 | D81: 86 | E81: 84 | F81: 81 | G81: 79 | H81: 77 | I81: 75 | J81: 73 | K81: 71 | L81: 69 | M81: 68 | N81: 59 | O81: 53 | P81: 47
C82: 87 | D82: 84 | E82: 82 | F82: 79 | G82: 77 | H82: 75 | I82: 73 | J82: 71 | K82: 70 | L82: 68 | M82: 66 | N82: 58 | O82: 52 | P82: 46
C83: 85 | D83: 82 | E83: 80 | F83: 78 | G83: 76 | H83: 74 | I83: 72 | J83: 70 | K83: 68 | L83: 67 | M83: 65 | N83: 57 | O83: 51 | P83: 46
C84: 83 | D84: 81 | E84: 78 | F84: 76 | G84: 74 | H84: 72 | I84: 71 | J84: 69 | K84: 67 | L84: 66 | M84: 64 | N84: 57 | O84: 50 | P84: 45
C85: 82 | D85: 79 | E85: 77 | F85: 75 | G85: 73 | H85: 71 | I85: 70 | J85: 68 | K85: 66 | L85: 65 | M85: 63 | N85: 56 | O85: 50 | P85: 45
C86: 80 | D86: 78 | E86: 76 | F86: 74 | G86: 72 | H86: 70 | I86: 69 | J86: 67 | K86: 65 | L86: 64 | M86: 63 | N86: 55 | O86: 49 | P86: 44
C87: 79 | D87: 77 | E87: 75 | F87: 73 | G87: 71 | H87: 69 | I87: 68 | J87: 66 | K87: 65 | L87: 63 | M87: 62 | N87: 54 | O87: 48 | P87: 44
C88: 78 | D88: 76 | E88: 74 | F88: 72 | G88: 70 | H88: 69 | I88: 67 | J88: 65 | K88: 64 | L88: 63 | M88: 61 | N88: 54 | O88: 48 | P88: 43
C89: 77 | D89: 75 | E89: 73 | F89: 71 | G89: 70 | H89: 68 | I89: 66 | J89: 65 | K89: 63 | L89: 62 | M89: 61 | N89: 53 | O89: 48 | P89: 43
C90: 76 | D90: 74 | E90: 72 | F90: 71 | G90: 69 | H90: 67 | I90: 66 | J90: 64 | K90: 63 | L90: 61 | M90: 60 | N90: 53 | O90: 47 | P90: 42

Sheet 50 kmph
A1: Calcul du rayon minimal d'un arc de cercle
I3: i = dévers (%) | M3: Coefficient de frottement calculé:
I4: p = pente (%) | M4: Øc = 0,45 (1 - 0,05 √V) = | Q4: =0.45*(1-0.05*(E6)^0.5) -> 0.2909009742
A6: Vitesse de base: | E6: 50 | F6: km/h
A7: 1) calcul de R brut
A9: RAYON MINIMAL D'UN ARC DE CERCLE BRUT: Wallon(m)
C10: DÉVERS
C11: -0.025 | D11: -0.02 | E11: -0.015 | F11: -0.01 | G11: -0.005 | H11: 0 | I11: 0.005 | J11: 0.01 | K11: 0.015 | L11: 0.02 | M11: 0.025 | N11: 0.03 | O11: 0.035 | P11: 0.04 | Q11: 0.045 | R11: 0.05 | S11: 0.055 | T11: 0.06 | U11: 0.065 | V11: 0.07
A12: PENTE | B12: -0.08 | C12: =2*($E$6)^2/(127*(C$11+((2/3)*((0.75*$Q$4^2)+($B12*$Q$4)-$B12^2)^(1/2)))) -> 403.5600251 | D12: =2*($E$6)^2/(127*(D$11+((2/3)*((0.75*$Q$4^2)+($B12*$Q$4)-$B12^2)^(1/2)))) -> 383.8850987 | E12: 366.0394293 | F12: 349.7792391 | G12: 334.9022248 | H12: 321.2390964 | I12: 308.6471076 | J12: 297.0050494 | K12: 286.209336 | L12: 276.1709138 | M12: 266.8128001 | N12: 258.0681042 | O12: 249.8784264 | P12: 242.1925523 | Q12: 234.9653804 | R12: 228.1570368 | S12: 221.7321388 | T12: 215.6591803 | U12: 209.9100145 | V12: 204.4594184
B13: -0.07 | C13: =2*($E$6)^2/(127*(C$11+((2/3)*((0.75*$Q$4^2)+($B13*$Q$4)-$B13^2)^(1/2)))) -> 373.8621099 | D13: 356.9155838 | E13: 341.4387527 | F13: 327.2483726 | G13: 314.190447 | H13: 302.1346151 | I13: 290.9697855 | J13: 280.6007021 | K13: 270.9452199 | L13: 261.9321242 | M13: 253.4993714 | N13: 245.5926582 | O13: 238.1642514 | P13: 231.1720236 | Q13: 224.5786533 | R13: 218.3509588 | S13: 212.4593399 | T13: 206.8773068 | U13: 201.5810828 | V13: 196.5492648
B14: -0.06 | C14: 350.5892517 | D14: 335.6447257 | E14: 321.9221872 | F14: 309.2776436 | G14: 297.5888703 | H14: 286.7514473 | I14: 276.6756309 | J14: 267.2838626 | K14: 258.5087693 | L14: 250.2915443 | M14: 242.5806276 | N14: 235.330623 | O14: 228.501404 | P14: 222.0573706 | Q14: 215.9668283 | R14: 210.2014672 | S14: 204.7359217 | T14: 199.5473976 | U14: 194.6153542 | V14: 189.9212325
B15: -0.05 | C15: 331.8471819 | D15: 318.4271975 | E15: 306.05044 | F15: 294.5998148 | G15: 283.9751196 | H15: 274.0901038 | I15: 264.8701223 | J15: 256.250247 | K15: 248.1737352 | L15: 240.5907795 | M15: 233.4574795 | N15: 226.7349911 | O15: 220.3888192 | P15: 214.3882257 | Q15: 208.7057312 | R15: 203.3166945 | S15: 198.1989556 | T15: 193.3325308 | U15: 188.699352 | V15: 184.2830425
B16: -0.04 | C16: 316.439312 | D16: 304.2136374 | E16: 292.8975037 | F16: 282.3930518 | G16: 272.6159749 | H16: 263.4932513 | I16: 254.9613168 | J16: 246.9645821 | K16: 239.4542198 | L16: 232.3871667 | M16: 225.7252975 | N16: 219.4347372 | O16: 213.4852841 | P16: 207.8499257 | Q16: 202.5044284 | R16: 197.4269888 | S16: 192.5979369 | T16: 187.9994812 | U16: 183.6154899 | V16: 179.4313014
B17: -0.03 | C17: 303.5697773 | D17: 292.3006063 | E17: 281.8381602 | F17: 272.0988062 | G17: 263.0100854 | H17: 254.5089074 | I17: 246.5400832 | J17: 239.0551261 | K17: 232.0112639 | L17: 225.3706215 | M17: 219.0995394 | N17: 213.1680029 | O17: 207.5491622 | P17: 202.2189254 | Q17: 197.1556137 | R17: 192.3396663 | S17: 187.7533885 | T17: 183.3807335 | U17: 179.2071157 | V17: 175.2192476
B18: -0.02 | C18: 292.6872042 | D18: 282.197561 | E18: 272.4337821 | F18: 263.3230443 | G18: 254.8019507 | H18: 246.8150532 | I18: 239.3136445 | J18: 232.2547643 | K18: 225.6003755 | L18: 219.316679 | M18: 213.3735393 | N18: 207.744001 | O18: 202.4038806 | P18: 197.3314187 | Q18: 192.5069838 | R18: 187.9128185 | S18: 183.532821 | T18: 179.3523564 | U18: 175.3580937 | V18: 171.5378635
B19: -0.01 | C19: 283.3968027 | D19: 273.5513098 | E19: 264.3669338 | F19: 255.7792477 | G19: 247.7319324 | H19: 240.1755403 | I19: 233.0664781 | J19: 226.3661658 | K19: 220.0403355 | L19: 214.058446 | M19: 208.3931891 | N19: 203.020073 | O19: 197.9170685 | P19: 193.0643069 | Q19: 188.4438214 | R19: 184.039325 | S19: 179.8360188 | T19: 175.8204254 | U19: 171.9802451 | V19: 168.3042298
B20: 0 | C20: 275.408151 | D20: 266.1007876 | E20: 257.4019405 | F20: 249.2538215 | G20: 241.6057351 | H20: 234.4130227 | I20: 227.63619 | J20: 221.2401815 | K20: 215.1937737 | L20: 209.469066 | M20: 204.0410494 | N20: 198.8872419 | O20: 193.9873769 | P20: 189.323137 | Q20: 184.877925 | R20: 180.636667 | S20: 176.5856412 | T20: 172.7123294 | U20: 169.0052887 | V20: 165.4540376
B21: 0.01 | C21: 268.5027653 | D21: 259.6487805 | E21: 251.3600825 | F21: 243.5842094 | G21: 236.2749964 | H21: 229.3916582 | I21: 222.8980278 | J21: 216.7619206 | K21: 210.9546012 | L21: 205.4503332 | M21: 200.2259979 | N21: 195.2607701 | O21: 190.5358399 | P21: 186.0341753 | Q21: 181.7403167 | R21: 177.6401997 | S21: 173.7210008 | T21: 169.9710042 | U21: 166.3794838 | V21: 162.9366017
B22: 0.02 | C22: 262.5131927 | D22: 254.0435889 | E22: 246.1034224 | F22: 238.6445547 | G22: 231.6245118 | H22: 225.0056744 | I22: 218.754604 | J22: 212.8414772 | K22: 207.2396107 | L22: 201.9250582 | M22: 196.8762682 | N22: 192.0737922 | O22: 187.5000342 | P22: 183.1390351 | Q22: 178.976287 | R22: 174.9985715 | S22: 171.1938199 | T22: 167.5509907 | U22: 164.0599628 | V22: 160.711441
B23: 0.03 | C23: 257.3090988 | D23: 249.1667636 | E23: 241.523937 | F23: 234.3360216 | G23: 227.5635761 | H23: 221.1715901 | I23: 215.1288798 | J23: 209.4075783 | K23: 203.9827067 | L23: 198.8318089 | M23: 193.9346412 | N23: 189.2729064 | O23: 184.8300252 | P23: 180.5909395 | Q23: 176.5419414 | R23: 172.6705255 | S23: 168.9652598 | T23: 165.415673 | U23: 162.0121556 | V23: 158.745873
B24: 0.04 | C24: 252.7877561 | D24: 244.9246831 | E24: 237.5360219 | F24: 230.5800949 | G24: 224.0199676 | H24: 217.8227925 | I24: 211.9592586 | J24: 206.4031288 | K24: 201.1308462 | L24: 196.1212013 | M24: 191.355046 | N24: 186.8150497 | O24: 182.4854882 | P24: 178.352062 | Q24: 174.4017384 | R24: 170.6226146 | S24: 167.0037973 | T24: 163.5352983 | U24: 160.2079423 | V24: 157.0132858
B25: 0.05 | C25: 248.8673892 | D25: 241.2426362 | E25: 234.0712059 | F25: 227.3138377 | G25: 220.9356771 | H25: 214.9056751 | I25: 209.1960821 | J25: 203.7820212 | K25: 198.641126 | L25: =2*($E$6)^2/(127*(L$11+((2/3)*((0.75*$Q$4^2)+($B25*$Q$4)-$B25^2)^(1/2)))) -> 193.7532313 | M25: 189.1001091 | N25: 184.6652415 | O25: 180.4336245 | P25: 176.3915986 | Q25: 172.5267015 | R25: 168.8275397 | S25: 165.2836763 | T25: 161.8855327 | U25: 158.6243023 | V25: 155.4918739
B26: 0.06 | C26: 245.4824246 | D26: 238.060584 | E26: 231.0743527 | F26: 224.4864733 | G26: 218.2638193 | H26: 212.3768385 | I26: 206.7990829 | J26: 201.506812 | K26: 196.478655 | L26: 191.6953221 | M26: 187.1393572 | N26: 182.7949253 | O26: 178.6476286 | P26: 174.6843467 | Q26: 170.8930983 | R26: 167.2629203 | S26: 163.7837616 | T26: 160.4463904 | U26: 157.2423123 | V26: 154.1636982
B27: 0.07 | C27: 242.5800443 | D27: 235.3300741 | E27: 228.5008865 | F27: 222.0568818 | G27: 215.966366 | H27: 210.2010292 | I27: 204.7355062 | J27: 199.5470029 | K27: 194.6149788 | L27: 189.920875 | M27: 185.4478812 | N27: 181.1807341 | O27: 177.1055438 | P27: 173.2096426 | Q27: 169.4814532 | R27: 165.9103743 | S27: 162.4866796 | T27: 159.2014294 | U27: 156.0463927 | V27: 153.0139782
B28: 0.08 | C28: 240.1176501 | D28: 233.0119639 | E28: 226.3147405 | F28: 219.991744 | G28: 214.0124602 | H28: 208.349605 | I28: 202.9787072 | J28: 197.8777559 | K28: 193.0268983 | L28: 188.4081817 | M28: 184.0053317 | N28: 179.8035604 | O28: 175.7894003 | P28: 171.9505603 | Q28: 168.2758003 | R28: 164.7548207 | S28: 161.3781662 | T28: 158.1371412 | U28: 155.0237349 | V28: 152.0305551
A30: 2) calcul de R corrigé
A31: RAYON MINIMAL D'UN ARC DE CERCLE Corrigé: Wallon (m)
C32: DÉVERS
C33: -2.5 | D33: -2.5 | E33: -2 | F33: -1.5 | G33: -1 | H33: -0.5 | I33: 0 | J33: 0.5 | K33: 1 | L33: 1.5 | M33: 2 | N33: 2.5 | O33: 3 | P33: 3.5 | Q33: 4 | R33: 4.5 | S33: 5 | T33: 5.5 | U33: 6 | V33: 6.5 | W33: 7
C34: 1 | D34: 1 | E34: 1 | F34: 1 | G34: 1 | H34: 1 | I34: 1 | J34: 1 | K34: 1 | L34: 1 | M34: 1 | N34: 1 | O34: =1+(1/9) -> 1.111111111 | P34: =1+(1/9)*2 -> 1.222222222 | Q34: =1+(1/9)*3 -> 1.333333333 | R34: =1+(1/9)*4 -> 1.444444444 | S34: =1+(1/9)*5 -> 1.555555556 | T34: =1+(1/9)*6 -> 1.666666667 | U34: =1+(1/9)*7 -> 1.777777778 | V34: =1+(1/9)*8 -> 1.888888889 | W34: =1+(1/9)*9 -> 2
A35: PENTE | B35: -8 | C35: 10000 | D35: 404 | E35: 384 | F35: 366 | G35: 350 | H35: 335 | I35: 321 | J35: 309 | K35: 297 | L35: 286 | M35: 276 | N35: 267 | O35: 232 | P35: 204 | Q35: 182 | R35: 163 | S35: 147 | T35: 133 | U35: 121 | V35: 111 | W35: 102
B36: -7 | C36: 10000 | D36: 374 | E36: 357 | F36: 341 | G36: 327 | H36: 314 | I36: 302 | J36: 291 | K36: 281 | L36: 271 | M36: 262 | N36: 253 | O36: 221 | P36: 195 | Q36: 173 | R36: 155 | S36: 140 | T36: 127 | U36: 116 | V36: 107 | W36: 98
B37: -6 | C37: 10000 | D37: 351 | E37: 336 | F37: 322 | G37: 309 | H37: 298 | I37: 287 | J37: 277 | K37: 267 | L37: 259 | M37: 250 | N37: 243 | O37: 212 | P37: 187 | Q37: 167 | R37: 150 | S37: 135 | T37: 123 | U37: 112 | V37: 103 | W37: 95
B38: -5 | C38: 10000 | D38: 332 | E38: 318 | F38: 306 | G38: 295 | H38: 284 | I38: 274 | J38: 265 | K38: 256 | L38: 248 | M38: 241 | N38: 233 | O38: 204 | P38: 180 | Q38: 161 | R38: 144 | S38: 131 | T38: 119 | U38: 109 | V38: 100 | W38: 92
B39: -4 | C39: 10000 | D39: 316 | E39: 304 | F39: 293 | G39: 282 | H39: 273 | I39: 263 | J39: 255 | K39: 247 | L39: 239 | M39: 232 | N39: 226 | O39: 197 | P39: 175 | Q39: 156 | R39: 140 | S39: 127 | T39: 116 | U39: 106 | V39: 97 | W39: 90
B40: -3 | C40: 10000 | D40: 304 | E40: 292 | F40: 282 | G40: 272 | H40: 263 | I40: 255 | J40: 247 | K40: 239 | L40: 232 | M40: 225 | N40: 219 | O40: 192 | P40: 170 | Q40: 152 | R40: 136 | S40: 124 | T40: 113 | U40: 103 | V40: 95 | W40: 88
B41: -2 | C41: 10000 | D41: 293 | E41: 282 | F41: 272 | G41: 263 | H41: 255 | I41: 247 | J41: 239 | K41: 232 | L41: 226 | M41: 219 | N41: 213 | O41: 187 | P41: 166 | Q41: 148 | R41: 133 | S41: 121 | T41: 110 | U41: 101 | V41: 93 | W41: 86
B42: -1 | C42: 10000 | D42: 283 | E42: 274 | F42: 264 | G42: 256 | H42: 248 | I42: 240 | J42: 233 | K42: 226 | L42: 220 | M42: 214 | N42: 208 | O42: 183 | P42: 162 | Q42: 145 | R42: 130 | S42: 118 | T42: 108 | U42: 99 | V42: 91 | W42: 84
B43: 0 | C43: 10000 | D43: 275 | E43: 266 | F43: 257 | G43: 249 | H43: 242 | I43: 234 | J43: 228 | K43: 221 | L43: 215 | M43: 209 | N43: 204 | O43: 179 | P43: 159 | Q43: 142 | R43: 128 | S43: 116 | T43: 106 | U43: 97 | V43: 89 | W43: 83
B44: 1 | C44: 10000 | D44: 269 | E44: 260 | F44: 251 | G44: 244 | H44: 236 | I44: 229 | J44: 223 | K44: 217 | L44: 211 | M44: 205 | N44: 200 | O44: 176 | P44: 156 | Q44: 140 | R44: 126 | S44: 114 | T44: 104 | U44: 96 | V44: 88 | W44: 81
B45: 2 | C45: 10000 | D45: 263 | E45: 254 | F45: 246 | G45: 239 | H45: 232 | I45: 225 | J45: 219 | K45: 213 | L45: 207 | M45: 202 | N45: 197 | O45: 173 | P45: 153 | Q45: 137 | R45: 124 | S45: 112 | T45: 103 | U45: 94 | V45: 87 | W45: 80
B46: 3 | C46: 10000 | D46: 257 | E46: 249 | F46: 242 | G46: 234 | H46: 228 | I46: 221 | J46: 215 | K46: 209 | L46: 204 | M46: 199 | N46: 194 | O46: 170 | P46: 151 | Q46: 135 | R46: 122 | S46: 111 | T46: 101 | U46: 93 | V46: 86 | W46: 79
B47: 4 | C47: 10000 | D47: 253 | E47: 245 | F47: 238 | G47: 231 | H47: 224 | I47: 218 | J47: 212 | K47: 206 | L47: 201 | M47: 196 | N47: 191 | O47: 168 | P47: 149 | Q47: 134 | R47: 121 | S47: 110 | T47: 100 | U47: 92 | V47: 85 | W47: 79
B48: 5 | C48: 10000 | D48: 249 | E48: 241 | F48: 234 | G48: 227 | H48: 221 | I48: 215 | J48: 209 | K48: 204 | L48: 199 | M48: 194 | N48: 189 | O48: 166 | P48: 148 | Q48: 132 | R48: 119 | S48: 109 | T48: 99 | U48: 91 | V48: 84 | W48: 78
B49: 6 | C49: 10000 | D49: 245 | E49: 238 | F49: 231 | G49: 224 | H49: 218 | I49: 212 | J49: 207 | K49: 202 | L49: 196 | M49: 192 | N49: 187 | O49: 165 | P49: 146 | Q49: 131 | R49: 118 | S49: 108 | T49: 98 | U49: 90 | V49: 83 | W49: 77
B50: 7 | C50: 10000 | D50: 243 | E50: 235 | F50: 229 | G50: 222 | H50: 216 | I50: 210 | J50: 205 | K50: 200 | L50: 195 | M50: 190 | N50: 185 | O50: 163 | P50: 145 | Q50: 130 | R50: 117 | S50: 107 | T50: 97 | U50: 90 | V50: 83 | W50: 77
B51: 8 | C51: 10000 | D51: 240 | E51: 233 | F51: 226 | G51: 220 | H51: 214 | I51: 208 | J51: 203 | K51: 198 | L51: 193 | M51: 188 | N51: 184 | O51: 162 | P51: 144 | Q51: 129 | R51: 116 | S51: 106 | T51: 97 | U51: 89 | V51: 82 | W51: 76

Sheet 70 kmph
A1: Calcul du rayon minimal d'un arc de cercle
I3: i = dévers (m/m) | M3: Coefficient de frottement calculé:
I4: p = pente (m/m) | M4: Øc = 0,45 (1 - 0,05 √V) = | Q4: =0.45*(1-0.05*(E6)^0.5) -> 0.261751494
A6: Vitesse de base: | E6: 70 | F6: km/h
A7: 1) calcul de R brut
A9: RAYON MINIMAL D'UN ARC DE CERCLE brut: Wallon (m)
C10: DÉVERS
C11: -0.025 | D11: -0.02 | E11: -0.015 | F11: -0.01 | G11: -0.005 | H11: 0 | I11: 0.005 | J11: 0.01 | K11: 0.015 | L11: 0.02 | M11: 0.025 | N11: 0.03 | O11: 0.035 | P11: 0.04 | Q11: 0.045 | R11: 0.05 | S11: 0.055 | T11: 0.06 | U11: 0.065
A12: PENTE | B12: -0.07 | C12: =2*($E$6)^2/(127*(C$11+((2/3)*((0.75*$Q$4^2)+($B12*$Q$4)-$B12^2)^(1/2)))) -> 888.1988831 | D12: =2*($E$6)^2/(127*(D$11+((2/3)*((0.75*$Q$4^2)+($B12*$Q$4)-$B12^2)^(1/2)))) -> 839.8633511 | E12: 796.517115 | F12: 757.4255795 | G12: 721.991613 | H12: 689.7248304 | I12: 660.2187602 | J12: 633.1336321 | K12: 608.1832341 | L12: 585.1247598 | M12: 563.7508802 | N12: 543.8834928 | O12: 525.3687467 | P12: 508.0730507 | Q12: 491.8798448 | R12: 476.6869701 | S12: 462.4045108 | T12: 448.9530143 | U12: 436.2620116
B13: -0.06 | C13: =2*($E$6)^2/(127*(C$11+((2/3)*((0.75*$Q$4^2)+($B13*$Q$4)-$B13^2)^(1/2)))) -> 817.3734604 | D13: 776.2607769 | E13: 739.0858454 | F13: 705.3087867 | G13: 674.4841007 | H13: 646.2409066 | I13: 620.2679474 | J13: 596.3020714 | K13: 574.1192847 | L13: 553.5277287 | M13: 534.3621167 | N13: 516.4792878 | O13: 499.7546246 | P13: 484.0791447 | Q13: 469.3571236 | R13: 455.5041378 | S13: 442.445445 | T13: 430.1146352 | U13: 418.452501
B14: -0.05 | C14: 762.9906055 | D14: 727.0463937 | E14: 694.3364542 | F14: 664.4430496 | G14: 637.017413 | H14: 611.7660779 | I14: 588.4403355 | J14: 566.8280154 | K14: 546.7470135 | L14: 528.0401485 | M14: 510.5710388 | N14: 494.2207729 | O14: 478.8851981 | P14: 464.4727002 | Q14: 450.9023716 | R14: 438.1024918 | S14: 426.0092591 | T14: 414.5657272 | U14: 403.7209087
B15: -0.04 | C15: 719.9114835 | D15: 687.8262294 | E15: 658.478922 | F15: 631.5334446 | G15: 606.7065342 | H15: 583.7577857 | I15: 562.4818415 | J15: 542.7022298 | K15: 524.2664578 | L15: 507.0420729 | M15: 490.9134756 | N15: 475.779321 | O15: 461.5503881 | P15: 448.1478189 | Q15: 435.5016567 | R15: 423.5496243 | S15: 412.2360985 | T15: 401.5112447 | U15: 391.3302827
B16: -0.03 | C16: 684.9919633 | D16: 655.8808974 | E16: 629.1433101 | F16: 604.5003001 | G16: 581.7150162 | H16: 560.5850203 | I16: 540.9362566 | J16: 522.6182459 | K16: 505.5002243 | L16: 489.4680169 | M16: 474.4214881 | N16: 460.272448 | O16: 446.9429224 | P16: 434.3637157 | Q16: 422.4732089 | R16: 411.2163507 | S16: 400.5438045 | T16: 390.4112263 | U16: 380.7786483
B17: -0.02 | C17: 656.1928172 | D17: 629.4303113 | E17: 604.7652537 | F17: 581.9603685 | G17: 560.8128686 | H17: 541.1484095 | I17: 522.8162709 | J17: 505.6854871 | K17: 489.6417127 | L17: 474.5846672 | M17: 460.4260374 | N17: 447.0877433 | O17: 434.5004981 | P17: 422.602604 | Q17: 411.3389411 | R17: 400.6601133 | S17: 390.5217242 | T17: 380.8837601 | U17: 371.7100624
B18: -0.01 | C18: 632.1300095 | D18: 607.2570962 | E18: 584.2674677 | F18: 562.9550332 | G18: 543.1427141 | H18: 524.6775123 | I18: 507.4265515 | J18: 491.2738745 | K18: 476.1178336 | L18: 461.8689492 | M18: 448.4481418 | N18: 435.7852639 | O18: 423.8178735 | P18: 412.4902043 | Q18: 401.7522968 | R18: 391.5592618 | S18: 381.8706527 | T18: 372.6499296 | U18: 363.8639988
B19: 0 | C19: 611.8296056 | D19: 588.4991108 | E19: 566.8825524 | F19: 546.7977546 | G19: 528.0874766 | H19: 510.6152871 | I19: 494.2622325 | J19: 478.9241245 | K19: 464.5093188 | L19: 450.9368816 | M19: 438.1350703 | N19: 426.0400637 | O19: 414.5948991 | P19: 403.7485742 | Q19: 393.4552883 | R19: 383.6737947 | S19: 374.3668492 | T19: 365.5007356 | U19: 357.044858
B20: 0.01 | C20: 594.5859399 | D20: 572.5282902 | E20: 552.0486668 | F20: 532.9835775 | G20: 515.1913613 | H20: 498.5486616 | I20: 482.9475629 | J20: 468.2932479 | K20: 454.5020684 | L20: 441.4999484 | M20: 429.2210524 | N20: 417.6066707 | O20: 406.604281 | P20: 396.1667538 | Q20: 386.2516776 | R20: 376.8207833 | S20: 367.8394502 | T20: 359.2762815 | U20: 351.1027374
B21: 0.02 | C21: 579.8754313 | D21: 558.8764527 | E21: 539.3451922 | F21: 521.1329671 | G21: 504.1105214 | H21: 488.1649529 | I21: 473.1972064 | J21: 459.120014 | K21: 445.8561922 | L21: 433.3372265 | M21: 421.502087 | N21: 410.2962343 | O21: 399.6707783 | P21: 389.5817657 | Q21: 379.9895718 | R21: 370.8583808 | S21: 362.1557388 | T21: 353.8521682 | U21: 345.9208343
B22: 0.03 | C22: 567.3020489 | D22: 547.1880418 | E22: 528.4515022 | F22: 510.9556153 | G22: 494.5811041 | H22: 479.2235066 | I22: 464.7909449 | J22: 451.202286 | K22: 438.385615 | L22: 426.2769627 | M22: 414.8192375 | N22: 403.9613253 | O22: 393.657327 | P22: 383.8659103 | Q22: 374.5497552 | R22: 365.6750787 | S22: 357.2112257 | T22: 349.130315 | U22: 341.4069324
B23: 0.04 | C23: 556.5616173 | D23: 537.1890123 | E23: 519.1196736 | F23: 502.2263676 | G23: 486.3979008 | H23: 471.5366688 | I23: 457.5566426 | J23: 444.3817015 | K23: 431.9442469 | L23: 420.1840417 | M23: 409.0472354 | N23: 398.4855391 | O23: 388.4555256 | P23: 378.9180327 | Q23: 369.8376522 | R23: 361.1822905 | S23: 352.9227897 | T23: 345.0325993 | U23: 337.4874913
B24: 0.05 | C24: 547.4177753 | D24: 528.6657692 | E24: 511.1559266 | F24: 494.76878 | G24: 479.3997061 | H24: 464.9566894 | I24: 451.358479 | J24: 438.5330591 | K24: 426.4163729 | L24: 414.951253 | M24: 404.0865191 | N24: 393.7762146 | O24: 383.9789565 | P24: 374.65738 | Q24: 365.7776631 | R24: 357.3091156 | S24: 349.2238254 | T24: 341.4963509 | U24: 334.1034534
B25: 0.06 | C25: 539.6853936 | D25: 521.4505743 | E25: 504.4077126 | F25: 488.4436353 | G25: 473.4590567 | H25: 459.3665124 | I25: 446.0886502 | J25: 433.5568104 | K25: 421.7098375 | L25: 410.4930827 | M25: 399.8575609 | N25: 389.7592351 | O25: 380.1584077 | P25: 371.0191982 | Q25: 362.3090956 | R25: 353.9985718 | S25: 346.0607472 | T25: 338.4711001 | U25: 331.2072139
B26: 0.07 | C26: 533.2189105 | D26: 515.4112413 | E26: 498.7545622 | F26: 483.1407762 | G26: =2*($E$6)^2/(127*(G$11+((2/3)*((0.75*$Q$4^2)+($B26*$Q$4)-$B26^2)^(1/2)))) -> 468.4749113 | H26: 454.6731875 | I26: 441.6614153 | J26: 429.3736612 | K26: 417.751131 | L26: 406.7412283 | M26: 396.2967593 | N26: 386.3752561 | O26: 376.9383999 | P26: 367.9515261 | Q26: 359.3831992 | R26: 351.204845 | S26: 343.3904324 | T26: 335.9161967 | U26: 328.7603984
B27: 0.08 | C27: 527.9040023 | D27: 510.4437508 | E27: 494.1015058 | F27: 478.773217 | G27: 464.3673573 | H27: 450.8030937 | I27: 438.0087697 | J27: 425.9206392 | K27: 414.481804 | L27: 403.6413184 | M27: 393.3534309 | N27: 383.5769382 | O27: 374.2746341 | P27: 365.4128361 | Q27: 356.9609781 | R27: 348.8912579 | S27: 341.1783316 | T27: 333.7990483 | U27: 326.7322173
A30: 2) calcul de R corrigé
A31: RAYON MINIMAL D'UN ARC DE CERCLE corrigé: Wallon (m)
C32: DÉVERS
C33: -2.5 | D33: -2.5 | E33: -2 | F33: -1.5 | G33: -1 | H33: -0.5 | I33: 0 | J33: 0.5 | K33: 1 | L33: 1.5 | M33: 2 | N33: 2.5 | O33: 3 | P33: 3.5 | Q33: 4 | R33: 4.5 | S33: 5 | T33: 5.5 | U33: 6 | V33: 6.5
C34: 1 | D34: 1 | E34: 1 | F34: 1 | G34: 1 | H34: 1 | I34: 1 | J34: 1 | K34: 1 | L34: 1 | M34: 1 | N34: 1 | O34: =1+(1/9) -> 1.111111111 | P34: =1+(1/9)*2 -> 1.222222222 | Q34: =1+(1/9)*3 -> 1.333333333 | R34: =1+(1/9)*4 -> 1.444444444 | S34: =1+(1/9)*5 -> 1.555555556 | T34: =1+(1/9)*6 -> 1.666666667 | U34: =1+(1/9)*7 -> 1.777777778 | V34: =1+(1/9)*8 -> 1.888888889
A35: PENTE | B35: -7 | C35: 10000 | D35: 888 | E35: 840 | F35: 797 | G35: 757 | H35: 722 | I35: 690 | J35: 660 | K35: 633 | L35: 608 | M35: 585 | N35: 564 | O35: 489 | P35: 430 | Q35: 381 | R35: 341 | S35: 306 | T35: 277 | U35: 253 | V35: 231
B36: -6 | C36: 10000 | D36: 817 | E36: 776 | F36: 739 | G36: 705 | H36: 674 | I36: 646 | J36: 620 | K36: 596 | L36: 574 | M36: 554 | N36: 534 | O36: 465 | P36: 409 | Q36: 363 | R36: 325 | S36: 293 | T36: 265 | U36: 242 | V36: 222
B37: -5 | C37: 10000 | D37: 763 | E37: 727 | F37: 694 | G37: 664 | H37: 637 | I37: 612 | J37: 588 | K37: 567 | L37: 547 | M37: 528 | N37: 511 | O37: 445 | P37: 392 | Q37: 348 | R37: 312 | S37: 282 | T37: 256 | U37: 233 | V37: 214
B38: -4 | C38: 10000 | D38: 720 | E38: 688 | F38: 658 | G38: 632 | H38: 607 | I38: 584 | J38: 562 | K38: 543 | L38: 524 | M38: 507 | N38: 491 | O38: 428 | P38: 378 | Q38: 336 | R38: 302 | S38: 272 | T38: 247 | U38: 226 | V38: 207
B39: -3 | C39: 10000 | D39: 685 | E39: 656 | F39: 629 | G39: 605 | H39: 582 | I39: 561 | J39: 541 | K39: 523 | L39: 506 | M39: 489 | N39: 474 | O39: 414 | P39: 366 | Q39: 326 | R39: 292 | S39: 264 | T39: 240 | U39: 220 | V39: 202
B40: -2 | C40: 10000 | D40: 656 | E40: 629 | F40: 605 | G40: 582 | H40: 561 | I40: 541 | J40: 523 | K40: 506 | L40: 490 | M40: 475 | N40: 460 | O40: 402 | P40: 356 | Q40: 317 | R40: 285 | S40: 258 | T40: 234 | U40: 214 | V40: 197
B41: -1 | C41: 10000 | D41: 632 | E41: 607 | F41: 584 | G41: 563 | H41: 543 | I41: 525 | J41: 507 | K41: 491 | L41: 476 | M41: 462 | N41: 448 | O41: 392 | P41: 347 | Q41: 309 | R41: 278 | S41: 252 | T41: 229 | U41: 210 | V41: 193
B42: 0 | C42: 10000 | D42: 612 | E42: 588 | F42: 567 | G42: 547 | H42: 528 | I42: 511 | J42: 494 | K42: 479 | L42: 465 | M42: 451 | N42: 438 | O42: 383 | P42: 339 | Q42: 303 | R42: 272 | S42: 247 | T42: 225 | U42: 206 | V42: 189
B43: 1 | C43: 10000 | D43: 595 | E43: 573 | F43: 552 | G43: 533 | H43: 515 | I43: 499 | J43: 483 | K43: 468 | L43: 455 | M43: 441 | N43: 429 | O43: 376 | P43: 333 | Q43: 297 | R43: 267 | S43: 242 | T43: 221 | U43: 202 | V43: 186
B44: 2 | C44: 10000 | D44: 580 | E44: 559 | F44: 539 | G44: 521 | H44: 504 | I44: 488 | J44: 473 | K44: 459 | L44: 446 | M44: 433 | N44: 422 | O44: 369 | P44: 327 | Q44: 292 | R44: 263 | S44: 238 | T44: 217 | U44: 199 | V44: 183
B45: 3 | C45: 10000 | D45: 567 | E45: 547 | F45: 528 | G45: 511 | H45: 495 | I45: 479 | J45: 465 | K45: 451 | L45: 438 | M45: 426 | N45: 415 | O45: 364 | P45: 322 | Q45: 288 | R45: 259 | S45: 235 | T45: 214 | U45: 196 | V45: 181
B46: 4 | C46: 10000 | D46: 557 | E46: 537 | F46: 519 | G46: 502 | H46: 486 | I46: 472 | J46: 458 | K46: 444 | L46: 432 | M46: 420 | N46: 409 | O46: 359 | P46: 318 | Q46: 284 | R46: 256 | S46: 232 | T46: 212 | U46: 194 | V46: 179
B47: 5 | C47: 10000 | D47: 547 | E47: 529 | F47: 511 | G47: 495 | H47: 479 | I47: 465 | J47: 451 | K47: 439 | L47: 426 | M47: 415 | N47: 404 | O47: 354 | P47: 314 | Q47: 281 | R47: 253 | S47: 230 | T47: 210 | U47: 192 | V47: 177
B48: 6 | C48: 10000 | D48: 540 | E48: 521 | F48: 504 | G48: 488 | H48: 473 | I48: 459 | J48: 446 | K48: 434 | L48: 422 | M48: 410 | N48: 400 | O48: 351 | P48: 311 | Q48: 278 | R48: 251 | S48: 228 | T48: 208 | U48: 190 | V48: 175
B49: 7 | C49: 10000 | D49: 533 | E49: 515 | F49: 499 | G49: 483 | H49: 468 | I49: 455 | J49: 442 | K49: 429 | L49: 418 | M49: 407 | N49: 396 | O49: 348 | P49: 308 | Q49: 276 | R49: 249 | S49: 226 | T49: 206 | U49: 189 | V49: 174
B50: 8 | C50: 10000 | D50: 528 | E50: 510 | F50: 494 | G50: 479 | H50: 464 | I50: 451 | J50: 438 | K50: 426 | L50: 414 | M50: 404 | N50: 393 | O50: 345 | P50: 306 | Q50: 274 | R50: 247 | S50: 224 | T50: 205 | U50: 188 | V50: 173

Sheet 90 kmph
A1: Calcul du rayon minimal d'un arc de cercle
I3: i = dévers (%) | M3: Coefficient de frottement calculé:
I4: p = pente (%) | M4: Øc = 0,45 (1 - 0,05 √V) = | Q4: =0.45*(1-0.05*(E6)^0.5) -> 0.2365462579
A6: Vitesse de base: | E6: 90 | F6: km/h
A7: 1) calcul de R brut
A9: RAYON D'UN ARC DE CERCLE BRUT: Wallon (m)
C10: DÉVERS
C11: -0.025 | D11: -0.02 | E11: -0.015 | F11: -0.01 | G11: -0.005 | H11: 0 | I11: 0.005 | J11: 0.01 | K11: 0.015 | L11: 0.02 | M11: 0.025 | N11: 0.03 | O11: 0.035 | P11: 0.04 | Q11: 0.045 | R11: 0.05 | S11: 0.055 | T11: 0.06
A12: PENTE | B12: -0.06 | C12: =2*($E$6)^2/(127*(C$11+((2/3)*((0.75*$Q$4^2)+($B12*$Q$4)-$B12^2)^(1/2)))) -> 1621.841641 | D12: =2*($E$6)^2/(127*(D$11+((2/3)*((0.75*$Q$4^2)+($B12*$Q$4)-$B12^2)^(1/2)))) -> 1524.900387 | E12: 1438.894321 | F12: 1362.071958 | G12: 1293.036902 | H12: 1230.662199 | I12: 1174.02834 | J12: 1122.37763 | K12: 1075.080093 | L12: 1031.607646 | M12: 991.514305 | N12: 954.4208231 | O12: 920.0026592 | P12: 887.9804566 | Q12: 858.1124445 | R12: 830.1883222 | S12: 804.0243002 | T12: 779.4590501
B13: -0.05 | C13: =2*($E$6)^2/(127*(C$11+((2/3)*((0.75*$Q$4^2)+($B13*$Q$4)-$B13^2)^(1/2)))) -> 1486.151863 | D13: 1404.343937 | E13: 1331.072629 | F13: 1265.068008 | G13: 1205.300137 | H13: 1150.924931 | I13: 1101.24405 | J13: 1055.674744 | K13: 1013.726884 | L13: 974.9852688 | M13: 939.0958292 | N13: 905.7547804 | O13: 874.6999993 | P13: 845.70412 | Q13: 818.5689575 | R13: 793.1209716 | S13: 769.207552 | T13: 746.6939551
B14: -0.04 | C14: 1383.557663 | D14: 1312.384375 | E14: 1248.17545 | F14: 1189.956364 | G14: 1136.926311 | H14: 1088.421145 | I14: 1043.885421 | J14: 1002.851032 | K14: 964.9206905 | L14: 929.7550232 | M14: 897.0623907 | N14: 866.5907791 | O14: 838.1212917 | P14: 811.4628817 | Q14: 786.4480598 | R14: 762.9293717 | S14: 740.7764896 | T14: 719.8737955
B15: -0.03 | C15: 1303.330793 | D15: 1239.983332 | E15: 1182.508358 | F15: 1130.125453 | G15: 1082.186612 | H15: 1038.149312 | I15: 997.5558805 | J15: 960.0175365 | K15: 925.2018958 | L15: 892.8231036 | M15: 862.6339675 | N15: 834.4196349 | O15: 807.9924721 | P15: 783.1878859 | Q15: 759.8608925 | R15: 737.8832819 | S15: 717.1412599 | T15: 697.5334776
B16: -0.02 | C16: 1239.050017 | D16: 1181.65953 | E16: 1129.350137 | F16: 1081.475657 | G16: 1037.495024 | H16: 996.9517445 | I16: 959.4579999 | J16: 924.6821963 | K16: 892.3391334 | L16: 862.1821647 | M16: 833.996896 | N16: 807.5960802 | O16: 782.8154525 | P16: 759.5103094 | Q16: 737.552681 | R16: 716.8289803 | S16: 697.2380375 | T16: 678.6894484
B17: -0.01 | C17: 1186.622261 | D17: 1133.882372 | E17: 1085.631077 | F17: 1041.318739 | G17: 1000.481944 | H17: 962.7272269 | I17: 927.7183552 | J17: 895.1662876 | K17: 864.8211757 | L17: 836.4659384 | M17: 809.9110609 | N17: 784.9903538 | O17: 761.5574713 | P17: 739.4830357 | Q17: 718.652247 | R17: 698.9628863 | S17: 680.3236382 | T17: 662.6526749
B18: 0 | C18: 1143.309159 | D18: 1094.269581 | E18: 1049.263858 | F18: 1007.81393 | G18: 969.5144092 | H18: 934.0192754 | I18: 901.0313904 | J18: 870.2941622 | K18: 841.5848562 | L18: 814.7091901 | M18: 789.4969304 | N18: 765.7982837 | O18: 743.4809182 | P18: 722.4274911 | Q18: 702.5335849 | R18: 683.7059756 | S18: 665.8611718 | T18: 648.924177
B19: 0.01 | C19: 1107.207728 | D19: 1061.153853 | E19: 1018.778171 | F19: 979.6569534 | G19: 943.429148 | H19: 909.7852063 | I19: 878.4582148 | J19: 849.216799 | K19: 821.8593994 | L19: 796.2096187 | M19: 772.1124141 | N19: 749.4309608 | O19: 728.0440529 | P19: 707.8439359 | Q19: 688.7344915 | R19: 670.6297082 | S19: 653.4523866 | T19: 637.1330392
B20: 0.02 | C20: 1076.95502 | D20: 1033.333886 | E20: 993.1088689 | F20: 955.8982216 | G20: 921.3753469 | H20: 889.2591836 | I20: 859.3065381 | J20: 831.3059149 | K20: 805.0725149 | L20: 780.4441522 | M20: 757.2778977 | N20: 735.4473037 | O20: 714.8400948 | P20: 695.3562362 | Q20: 676.9063102 | R20: 659.410144 | S20: 642.7956446 | T20: 626.9978065
B21: 0.03 | C21: 1051.551281 | D21: 1009.924017 | E21: 971.4670112 | F21: 935.8313866 | G21: 902.7176455 | H21: 871.8672314 | I21: 843.0557646 | J21: 816.0875759 | K21: 790.7912565 | L21: 767.0160116 | M21: 744.6286515 | N21: 723.5110958 | O21: 703.5582893 | P21: 684.6764547 | Q21: 666.7816187 | R21: 649.7983632 | S21: 633.6587631 | T21: 618.3014782
B22: 0.04 | C22: 1030.249484 | D22: 990.259597 | E22: 953.2581836 | F22: 918.9223141 | G22: 886.9739678 | H22: 857.1724895 | I22: 829.3085153 | J22: 803.1990474 | K22: 778.6834304 | L22: 755.620042 | M22: 733.883556 | N22: 713.3626636 | O22: 693.9581671 | P22: 675.5813764 | Q22: 658.1527531 | R22: 641.6007605 | S22: 625.8608816 | T22: 610.8747786
B23: 0.05 | C23: 1012.483887 | D23: 973.8354092 | E23: 938.0290185 | F23: 904.7623357 | G23: 873.7744073 | H23: 844.8388464 | I23: 817.7582925 | J23: 792.3599042 | K23: 768.491666 | L23: 746.0193434 | M23: 724.823957 | N23: 704.7996753 | O23: 685.8520475 | P23: 667.8965135 | Q23: 650.8571423 | R23: 634.6655591 | S23: 619.2600275 | T23: 604.5846634
B24: 0.06 | C24: 997.8224922 | D24: 960.2644579 | E24: 925.4312303 | F24: 893.0366654 | G24: 862.8333294 | H24: 834.6061676 | I24: 808.1673752 | J24: 783.352214 | K24: 760.0155765 | L24: 738.0291465 | M24: 717.2790384 | N24: 697.6638243 | O24: 679.0928756 | P24: 661.4849635 | Q24: 644.7670707 | R24: 628.8733795 | S24: 613.7444058 | T24: 599.326255
A26: 2) calcul de R corrigé
A27: RAYON D'UN ARC DE CERCLE Corrigé: Wallon (m)
C28: DÉVERS
C29: -2.5 | D29: -2.5 | E29: -2 | F29: -1.5 | G29: -1 | H29: -0.5 | I29: 0 | J29: 0.5 | K29: 1 | L29: 1.5 | M29: 2 | N29: 2.5 | O29: 3 | P29: 3.5 | Q29: 4 | R29: 4.5 | S29: 5 | T29: 5.5 | U29: 6
C30: 1 | D30: 1 | E30: 1 | F30: 1 | G30: 1 | H30: 1 | I30: 1 | J30: 1 | K30: 1 | L30: 1 | M30: 1 | N30: 1 | O30: =1+(1/9) -> 1.111111111 | P30: =1+(1/9)*2 -> 1.222222222 | Q30: =1+(1/9)*3 -> 1.333333333 | R30: =1+(1/9)*4 -> 1.444444444 | S30: =1+(1/9)*5 -> 1.555555556 | T30: =1+(1/9)*6 -> 1.666666667 | U30: =1+(1/9)*7 -> 1.777777778
A31: PENTE | B31: -6 | C31: 10000 | D31: 1622 | E31: 1525 | F31: 1439 | G31: 1362 | H31: 1293 | I31: 1231 | J31: 1174 | K31: 1122 | L31: 1075 | M31: 1032 | N31: 992 | O31: 859 | P31: 753 | Q31: 666 | R31: 594 | S31: 534 | T31: 482 | U31: 438
B32: -5 | C32: 10000 | D32: 1486 | E32: 1404 | F32: 1331 | G32: 1265 | H32: 1205 | I32: 1151 | J32: 1101 | K32: 1056 | L32: 1014 | M32: 975 | N32: 939 | O32: 815 | P32: 716 | Q32: 634 | R32: 567 | S32: 510 | T32: 462 | U32: 420
B33: -4 | C33: 10000 | D33: 1384 | E33: 1312 | F33: 1248 | G33: 1190 | H33: 1137 | I33: 1088 | J33: 1044 | K33: 1003 | L33: 965 | M33: 930 | N33: 897 | O33: 780 | P33: 686 | Q33: 609 | R33: 544 | S33: 490 | T33: 444 | U33: 405
B34: -3 | C34: 10000 | D34: 1303 | E34: 1240 | F34: 1183 | G34: 1130 | H34: 1082 | I34: 1038 | J34: 998 | K34: 960 | L34: 925 | M34: 893 | N34: 863 | O34: 751 | P34: 661 | Q34: 587 | R34: 526 | S34: 474 | T34: 430 | U34: 392
B35: -2 | C35: 10000 | D35: 1239 | E35: 1182 | F35: 1129 | G35: 1081 | H35: 1037 | I35: 997 | J35: 959 | K35: 925 | L35: 892 | M35: 862 | N35: 834 | O35: 727 | P35: 640 | Q35: 570 | R35: 511 | S35: 461 | T35: 418 | U35: 382
B36: -1 | C36: 10000 | D36: 1187 | E36: 1134 | F36: 1086 | G36: 1041 | H36: 1000 | I36: 963 | J36: 928 | K36: 895 | L36: 865 | M36: 836 | N36: 810 | O36: 706 | P36: 623 | Q36: 555 | R36: 498 | S36: 449 | T36: 408 | U36: 373
B37: 0 | C37: 10000 | D37: 1143 | E37: 1094 | F37: 1049 | G37: 1008 | H37: 970 | I37: 934 | J37: 901 | K37: 870 | L37: 842 | M37: 815 | N37: 789 | O37: 689 | P37: 608 | Q37: 542 | R37: 486 | S37: 440 | T37: 400 | U37: 365
B38: 1 | C38: 10000 | D38: 1107 | E38: 1061 | F38: 1019 | G38: 980 | H38: 943 | I38: 910 | J38: 878 | K38: 849 | L38: 822 | M38: 796 | N38: 772 | O38: 674 | P38: 596 | Q38: 531 | R38: 477 | S38: 431 | T38: 392 | U38: 358
B39: 2 | C39: 10000 | D39: 1077 | E39: 1033 | F39: 993 | G39: 956 | H39: 921 | I39: 889 | J39: 859 | K39: 831 | L39: 805 | M39: 780 | N39: 757 | O39: 662 | P39: 585 | Q39: 522 | R39: 469 | S39: 424 | T39: 386 | U39: 353
B40: 3 | C40: 10000 | D40: 1052 | E40: 1010 | F40: 971 | G40: 936 | H40: 903 | I40: 872 | J40: 843 | K40: 816 | L40: 791 | M40: 767 | N40: 745 | O40: 651 | P40: 576 | Q40: 514 | R40: 462 | S40: 418 | T40: 380 | U40: 348
B41: 4 | C41: 10000 | D41: 1030 | E41: 990 | F41: 953 | G41: 919 | H41: 887 | I41: 857 | J41: 829 | K41: 803 | L41: 779 | M41: 756 | N41: 734 | O41: 642 | P41: 568 | Q41: 507 | R41: 456 | S41: 412 | T41: 376 | U41: 344
B42: 5 | C42: 10000 | D42: 1012 | E42: 974 | F42: 938 | G42: 905 | H42: 874 | I42: 845 | J42: 818 | K42: 792 | L42: 768 | M42: 746 | N42: 725 | O42: 634 | P42: 561 | Q42: 501 | R42: 451 | S42: 408 | T42: 372 | U42: 340
B43: 6 | C43: 10000 | D43: 998 | E43: 960 | F43: 925 | G43: 893 | H43: 863 | I43: 835 | J43: 808 | K43: 783 | L43: 760 | M43: 738 | N43: 717 | O43: 628 | P43: 556 | Q43: 496 | R43: 446 | S43: 404 | T43: 368 | U43: 337

Sheet 120 kmph
A1: Calcul du rayon minimal d'un arc de cercle
I3: i = dévers (%) | M3: Coefficient de frottement calculé:
I4: p = pente (%) | M4: Øc = 0,45 (1 - 0,05 √V) = | Q4: =0.45*(1-0.05*(E6)^0.5) -> 0.2035248491
A6: Vitesse de base: | E6: 120 | F6: km/h
A7: 1) calcul de R brut
A9: RAYON MINIMAL D'UN ARC DE CERCLE (m)
C10: DÉVERS
C11: -0.025 | D11: -0.02 | E11: -0.015 | F11: -0.01 | G11: -0.005 | H11: 0 | I11: 0.005 | J11: 0.01 | K11: 0.015 | L11: 0.02 | M11: 0.025 | N11: 0.03 | O11: 0.035 | P11: 0.04 | Q11: 0.045 | R11: 0.05
A12: PENTE | B12: -0.04 | C12: =2*($E$6)^2/(127*(C$11+((2/3)*((0.75*$Q$4^2)+($B12*$Q$4)-$B12^2)^(1/2)))) -> 3134.124694 | D12: =2*($E$6)^2/(127*(D$11+((2/3)*((0.75*$Q$4^2)+($B12*$Q$4)-$B12^2)^(1/2)))) -> 2931.545801 | E12: 2753.564963 | F12: 2595.958402 | G12: 2455.417017 | H12: 2329.311505 | I12: 2215.526319 | J12: 2112.340033 | K12: 2018.337645 | L12: 1932.3453 | M12: 1853.381019 | N12: 1780.617035 | O12: 1713.350661 | P12: 1650.981527 | Q12: 1592.993613 | R12: 1538.940934
B13: -0.03 | C13: =2*($E$6)^2/(127*(C$11+((2/3)*((0.75*$Q$4^2)+($B13*$Q$4)-$B13^2)^(1/2)))) -> 2892.097799 | D13: 2718.733056 | E13: 2564.977318 | F13: 2427.681749 | G13: 2304.337453 | H13: 2192.920762 | I13: 2091.781342 | J13: 1999.559893 | K13: 1915.126709 | L13: 1837.535162 | M13: 1765.986064 | N13: 1699.800032 | O13: 1638.395855 | P13: 1581.273378 | Q13: 1527.999844 | R13: 1478.198917
B14: -0.02 | C14: 2708.612835 | D14: 2555.967513 | E14: 2419.609149 | F14: 2297.063082 | G14: 2186.331823 | H14: 2085.785331 | I14: 1994.080234 | J14: 1910.099465 | K14: 1832.906532 | L14: 1761.710451 | M14: 1695.83854 | N14: 1634.715096 | O14: 1577.844534 | P14: 1524.797912 | Q14: 1475.202095 | R14: 1428.730967
B15: -0.01 | C15: 2565.431542 | D15: 2428.088645 | E15: 2304.70405 | F15: 2193.252763 | G15: 2092.083422 | H15: 1999.835923 | I15: 1915.379918 | J15: 1837.768268 | K15: 1766.201369 | L15: 1699.9995 | M15: 1638.581172 | N15: 1581.445996 | O15: 1528.161027 | P15: 1478.349764 | Q15: 1431.683248 | R15: 1387.872785
B16: 0 | C16: 2451.449582 | D16: 2325.740829 | E16: 2212.29573 | F16: 2109.403161 | G16: 2015.656182 | H16: 1929.88732 | I16: 1851.119705 | J16: 1778.529694 | K16: 1711.417963 | L16: 1649.186903 | M16: 1591.322777 | N16: 1537.381507 | O16: 1486.97725 | P16: 1439.77316 | Q16: 1395.473845 | R16: 1353.819184
B17: 0.01 | C17: 2359.507912 | D17: 2242.827349 | E17: 2137.143003 | F17: 2040.970367 | G17: 1953.08064 | H17: 1872.447947 | I17: 1798.209106 | J17: 1729.632609 | K17: 1666.094437 | L17: 1607.059015 | M17: 1552.064077 | N17: 1500.708545 | O17: 1452.642719 | P17: 1407.560316 | Q17: 1365.191925 | R17: 1325.29963
B18: 0.02 | C18: 2284.785842 | D18: 2175.206851 | E18: 2075.657705 | F18: 1984.821611 | G18: 1901.602613 | H18: 1825.081164 | I18: 1754.480003 | J18: 1689.137659 | K18: 1628.487666 | L18: 1572.042094 | M18: 1519.378395 | N18: 1470.128811 | O18: 1423.971765 | P18: 1380.62484 | Q18: 1339.838988 | R18: 1301.393749
B19: 0.03 | C19: 2223.928055 | D19: 2119.976037 | E19: 2025.308022 | F19: 1938.733436 | G19: 1859.256934 | H19: 1786.039953 | I19: 1718.371017 | J19: 1655.642539 | K19: 1597.332524 | L19: 1542.990015 | M19: 1492.223401 | N19: 1444.690968 | O19: 1400.093199 | P19: 1358.16645 | Q19: 1318.677743 | R19: 1281.420428
B20: 0.04 | C20: 2174.541475 | D20: 2075.05183 | E20: 1984.267597 | F20: 1901.094076 | G20: 1824.612726 | H20: 1754.047102 | I20: 1688.7364 | J20: 1628.114701 | K20: 1571.694533 | L20: 1519.053729 | M20: 1469.824848 | N20: 1423.686588 | O20: 1380.356759 | P20: 1339.586511 | Q20: 1301.155552 | R20: 1264.868163
A22: 2) calcul de R corrigé
A23: RAYON D'UN ARC DE CERCLE modifié : Wallonie (m)
C24: DÉVERS
C25: -2.5 | D25: -2.5 | E25: -2 | F25: -1.5 | G25: -1 | H25: -0.5 | I25: 0 | J25: 0.5 | K25: 1 | L25: 1.5 | M25: 2 | N25: 2.5 | O25: 3 | P25: 3.5 | Q25: 4 | R25: 4.5 | S25: 5
C26: 1 | D26: 1 | E26: 1 | F26: 1 | G26: 1 | H26: 1 | I26: 1 | J26: 1 | K26: 1 | L26: 1 | M26: 1 | N26: 1 | O26: =1+(1/9) -> 1.111111111 | P26: =1+(1/9)*2 -> 1.222222222 | Q26: =1+(1/9)*3 -> 1.333333333 | R26: =1+(1/9)*4 -> 1.444444444 | S26: =1+(1/9)*5 -> 1.555555556
A27: PENTE | B27: -4 | C27: 10000 | D27: 3134 | E27: 2932 | F27: 2754 | G27: 2596 | H27: 2455 | I27: 2329 | J27: 2216 | K27: 2112 | L27: 2018 | M27: 1932 | N27: 1853 | O27: 1603 | P27: 1402 | Q27: 1238 | R27: 1103 | S27: 989
B28: -3 | C28: 10000 | D28: 2892 | E28: 2719 | F28: 2565 | G28: 2428 | H28: 2304 | I28: 2193 | J28: 2092 | K28: 2000 | L28: 1915 | M28: 1838 | N28: 1766 | O28: 1530 | P28: 1341 | Q28: 1186 | R28: 1058 | S28: 950
B29: -2 | C29: 10000 | D29: 2709 | E29: 2556 | F29: 2420 | G29: 2297 | H29: 2186 | I29: 2086 | J29: 1994 | K29: 1910 | L29: 1833 | M29: 1762 | N29: 1696 | O29: 1471 | P29: 1291 | Q29: 1144 | R29: 1021 | S29: 918
B30: -1 | C30: 10000 | D30: 2565 | E30: 2428 | F30: 2305 | G30: 2193 | H30: 2092 | I30: 2000 | J30: 1915 | K30: 1838 | L30: 1766 | M30: 1700 | N30: 1639 | O30: 1423 | P30: 1250 | Q30: 1109 | R30: 991 | S30: 892
B31: 0 | C31: 10000 | D31: 2451 | E31: 2326 | F31: 2212 | G31: 2109 | H31: 2016 | I31: 1930 | J31: 1851 | K31: 1779 | L31: 1711 | M31: 1649 | N31: 1591 | O31: 1384 | P31: 1217 | Q31: 1080 | R31: 966 | S31: 870
B32: 1 | C32: 10000 | D32: 2360 | E32: 2243 | F32: 2137 | G32: 2041 | H32: 1953 | I32: 1872 | J32: 1798 | K32: 1730 | L32: 1666 | M32: 1607 | N32: 1552 | O32: 1351 | P32: 1189 | Q32: 1056 | R32: 945 | S32: 852
B33: 2 | C33: 10000 | D33: 2285 | E33: 2175 | F33: 2076 | G33: 1985 | H33: 1902 | I33: 1825 | J33: 1754 | K33: 1689 | L33: 1628 | M33: 1572 | N33: 1519 | O33: 1323 | P33: 1165 | Q33: 1035 | R33: 928 | S33: 837
B34: 3 | C34: 10000 | D34: 2224 | E34: 2120 | F34: 2025 | G34: 1939 | H34: 1859 | I34: 1786 | J34: 1718 | K34: 1656 | L34: 1597 | M34: 1543 | N34: 1492 | O34: 1300 | P34: 1146 | Q34: 1019 | R34: 913 | S34: 824
B35: 4 | C35: 10000 | D35: 2175 | E35: 2075 | F35: 1984 | G35: 1901 | H35: 1825 | I35: 1754 | J35: 1689 | K35: 1628 | L35: 1572 | M35: 1519 | N35: 1470 | O35: 1281 | P35: 1129 | Q35: 1005 | R35: 901 | S35: 813
